[Event "45th FIDE Womens Olympiad 2024"]
[Site "Budapest"]
[Date "2024.09.12"]
[Round "2.158"]
[White "Berke, Ana"]
[Black "Saidova, Rukhshona"]
[Result "1/2-1/2"]
[ECO "A06"]
[WhiteElo "2093"]
[BlackElo "1873"]
[Annotator "NA"]
[PlyCount "139"]
[EventDate "2024.09.05"]
[EventType "team-tourn"]
[EventCountry "HUN"]
[SourceTitle "playchess.com"]
[Source "ChessBase"]
[SourceQuality "1"]
[WhiteTeam "Croatia"]
[BlackTeam "Tajikistan"]
[WhiteTeamCountry "CRO"]
[BlackTeamCountry "TJK"]
[TimeControl "40/5400+30:1800+30"]

1. b3 d5 2. Nf3 c5 3. Bb2 Nc6 4. e3 Nf6 5. Bb5 Bg4 6. h3 Bf5 7. O-O Rc8 8. d3 e6 9. Nbd2 Bd6 10. Qe2 Bb8 11. e4 Bg6 12. Ne5 Bxe5 13. Bxe5 O-O 14. Bxc6 Rxc6 15. f4 h6 16. Rf2 Nd7 17. Bb2 f5 18. exd5 exd5 19. Re1 Re8 20. Qf1 Rce6 21. Rfe2 Rxe2 22. Rxe2 Bh5 23. Rxe8+ Qxe8 24. d4 Qe3+ 25. Qf2 Qe7 26. dxc5 Qxc5 27. Qxc5 Nxc5 28. Nf1 Bf7 29. Kf2 g5 30. Ke3 Ne6 31. Be5 gxf4+ 32. Kd3 Kh7 33. Nd2 Bh5 34. a4 Bd1 35. a5 b6 36. b4 bxa5 37. b5 Nc5+ 38. Kd4 Nd7 39. Bxf4 Be2 40. Kxd5 Bxb5 41. c4 Nb6+ 42. Kd4 Bc6 43. g3 a4 44. Kc5 Bg2 45. h4 a3 46. Kb4 a2 47. Be5 Kg6 48. Kb3 Nd7 49. Bd4 Kh5 50. Kxa2 Kg4 51. Bf2 a6 52. Kb3 Nf6 53. c5 Bd5+ 54. Kc3 f4 55. gxf4 Kxf4 56. Kd4 Bc6 57. Nc4 Ng4 58. Be1 Nh2 59. Bd2+ Kf5 60. Ne5 Bb7 61. Bxh6 Nf1 62. c6 Bc8 63. Bc1 Ng3 64. Kd5 Be6+ 65. Kc5 Kxe5 66. Kb6 Kd5 67. Kxa6 Kxc6 68. Bg5 Ne4 69. Ka5 Nxg5 70. hxg5 1/2-1/2

[Event "45th FIDE Womens Olympiad 2024"]
[Site "Budapest"]
[Date "2024.09.12"]
[Round "2.159"]
[White "Tolibova, Dilola"]
[Black "Ivekovic, Tihana"]
[Result "0-1"]
[ECO "C50"]
[WhiteElo "1831"]
[BlackElo "2143"]
[Annotator "NA"]
[PlyCount "64"]
[EventDate "2024.09.05"]
[EventType "team-tourn"]
[EventCountry "HUN"]
[SourceTitle "playchess.com"]
[Source "ChessBase"]
[SourceQuality "1"]
[WhiteTeam "Tajikistan"]
[BlackTeam "Croatia"]
[WhiteTeamCountry "TJK"]
[BlackTeamCountry "CRO"]
[TimeControl "40/5400+30:1800+30"]

1. e4 e5 2. Nf3 Nc6 3. Bc4 Nf6 4. d3 Bc5 5. Nc3 d6 6. h3 a6 7. a3 h6 8. Bd2 Qe7 9. Qe2 Be6 10. Nd5 Bxd5 11. exd5 Nd4 12. Nxd4 Bxd4 13. c3 Ba7 14. Be3 Bxe3 15. Qxe3 O-O 16. O-O Rfe8 17. Rae1 Qd7 18. Qf3 Nh7 19. g4 Rf8 20. Qe3 Rae8 21. Qa7 Qc8 22. Qe3 f5 23. f3 h5 24. Qe2 Qd8 25. Bb3 Qh4 26. Kg2 Ng5 27. Rh1 e4 28. dxe4 fxe4 29. fxe4 Rxe4 30. Qd2 Rxg4+ 31. hxg4 Qxg4+ 32. Kh2 Nf3# 0-1

[Event "45th FIDE Womens Olympiad 2024"]
[Site "Budapest"]
[Date "2024.09.12"]
[Round "2.160"]
[White "Vujnovic, Patricija"]
[Black "Mashabova, Shukrona"]
[Result "1-0"]
[ECO "D00"]
[WhiteElo "2134"]
[BlackElo "1711"]
[Annotator "NA"]
[PlyCount "121"]
[EventDate "2024.09.05"]
[EventType "team-tourn"]
[EventCountry "HUN"]
[SourceTitle "playchess.com"]
[Source "ChessBase"]
[SourceQuality "1"]
[WhiteTeam "Croatia"]
[BlackTeam "Tajikistan"]
[WhiteTeamCountry "CRO"]
[BlackTeamCountry "TJK"]
[TimeControl "40/5400+30:1800+30"]

1. d4 d5 2. e3 Nf6 3. Bd3 Bg4 4. f3 Bh5 5. Ne2 Nbd7 6. c4 e5 7. cxd5 Nxd5 8. O-O Bd6 9. Nbc3 N5f6 10. Nb5 Be7 11. Ng3 Bg6 12. Nf5 Bxf5 13. Bxf5 a6 14. Nc3 O-O 15. d5 Nb6 16. e4 Nc4 17. Qe2 Bc5+ 18. Kh1 Nd6 19. Bh3 Nd7 20. f4 Bd4 21. Bxd7 Qxd7 22. fxe5 Bxe5 23. Bf4 Rae8 24. Bxe5 Rxe5 25. Qd3 Qg4 26. Qf3 Qxf3 27. gxf3 Rfe8 28. Rac1 R5e7 29. Na4 f5 30. Nc5 fxe4 31. fxe4 c6 32. dxc6 bxc6 33. Nxa6 Nxe4 34. Rxc6 Nd2 35. Rf2 Re1+ 36. Kg2 Ne4 37. Rfc2 Nf6 38. Rc8 Rxc8 39. Rxc8+ Kf7 40. Rc2 Nd5 41. Rd2 Nf4+ 42. Kf3 Rf1+ 43. Ke4 Ne6 44. Ke3 Re1+ 45. Kf2 Rh1 46. Kg2 Rb1 47. Nb4 g5 48. Nd5 h5 49. h3 Nc5 50. Nc3 Rc1 51. Nd5 Ke6 52. Ne3 Ne4 53. Rd1 Rxd1 54. Nxd1 Kd5 55. Nc3+ Kd4 56. Nxe4 Kxe4 57. b4 Kd5 58. a4 Kc6 59. Kf3 Kb6 60. Ke4 Kc6 61. Kf5 1-0

[Event "45th FIDE Womens Olympiad 2024"]
[Site "Budapest"]
[Date "2024.09.12"]
[Round "2.165"]
[White "Ollet, Myra"]
[Black "Clarke, Adani"]
[Result "0-1"]
[ECO "D05"]
[WhiteElo "1658"]
[BlackElo "1919"]
[Annotator "NA"]
[PlyCount "116"]
[EventDate "2024.09.05"]
[EventType "team-tourn"]
[EventCountry "HUN"]
[SourceTitle "playchess.com"]
[Source "ChessBase"]
[SourceQuality "1"]
[WhiteTeam "Guam"]
[BlackTeam "Jamaica"]
[WhiteTeamCountry "GMA"]
[BlackTeamCountry "JAM"]
[TimeControl "40/5400+30:1800+30"]

1. d4 e6 2. Nf3 Nf6 3. c3 d5 4. Nbd2 c5 5. e3 Bd6 6. Be2 O-O 7. O-O Qc7 8. h3 b6 9. b3 Ba6 10. Bb2 Bxe2 11. Qxe2 Nc6 12. Rac1 Qb7 13. e4 Bf4 14. Rcd1 cxd4 15. g3 Bxd2 16. Nxd2 dxc3 17. Bxc3 Qe7 18. e5 Nd7 19. Nf3 Nc5 20. Nd4 Rfc8 21. Nb5 Ne4 22. Bb2 a6 23. Ba3 Qg5 24. Nd6 Nxd6 25. Bxd6 Na5 26. Kg2 Nb7 27. f4 Qf5 28. Bb4 Rc2 29. Rd2 Rac8 30. g4 Rxd2 31. Bxd2 Qe4+ 32. Qxe4 dxe4 33. Rc1 Rxc1 34. Bxc1 f5 35. b4 Kf7 36. Be3 b5 37. Bb6 Ke7 38. g5 Kd7 39. Kf2 Kc6 40. Bd4 Kd5 41. Ke3 Kc4 42. a3 Kb3 43. Bc5 Kxa3 44. Be7 Kb3 45. h4 Kc4 46. h5 g6 47. hxg6 hxg6 48. Bd6 Nd8 49. Kd2 Nc6 50. Bc5 Nxb4 51. Be3 a5 52. Kc1 Nd5 53. Bd2 b4 54. Kb2 a4 55. Kc2 a3 56. Kb1 b3 57. Ka1 b2+ 58. Ka2 Nc3+ 0-1

[Event "45th FIDE Womens Olympiad 2024"]
[Site "Budapest"]
[Date "2024.09.12"]
[Round "2.166"]
[White "Miller, Rachel"]
[Black "Ramas, Carmina Jasmine"]
[Result "1-0"]
[ECO "B08"]
[WhiteElo "1912"]
[BlackElo "1712"]
[Annotator "NA"]
[PlyCount "107"]
[EventDate "2024.09.05"]
[EventType "team-tourn"]
[EventCountry "HUN"]
[SourceTitle "playchess.com"]
[Source "ChessBase"]
[SourceQuality "1"]
[WhiteTeam "Jamaica"]
[BlackTeam "Guam"]
[WhiteTeamCountry "JAM"]
[BlackTeamCountry "GMA"]
[TimeControl "40/5400+30:1800+30"]

1. e4 d6 2. d4 Nf6 3. Nc3 g6 4. Be3 Bg7 5. Qd2 c6 6. Nf3 Qc7 7. h3 Nbd7 8. Bh6 O-O 9. Bd3 e5 10. dxe5 dxe5 11. Bxg7 Kxg7 12. Qg5 h6 13. Qe3 a5 14. a4 Re8 15. g4 Qb6 16. Qxb6 Nxb6 17. Nd2 Be6 18. Rb1 Ra7 19. O-O g5 20. b3 Ng8 21. Nd1 Ne7 22. Ne3 Ng6 23. Ndc4 Nd7 24. Nd6 Rf8 25. Rfd1 Nf4 26. Bf1 Nc5 27. f3 b6 28. Nec4 Bxc4 29. Nxc4 Nd7 30. Rd6 b5 31. Ne3 Nf6 32. Nf5+ Kg6 33. Rxc6 Rd8 34. axb5 Rad7 35. Ne3 Kg7 36. b6 Rb7 37. Rd1 Rxd1 38. Nxd1 Nd7 39. Rc7 Rxc7 40. bxc7 Nb6 41. Ba6 Nxh3+ 42. Kf1 Nf4 43. c8=Q Nxc8 44. Bxc8 Ng6 45. Nb2 Kf8 46. Nc4 f6 47. Nxa5 Ke7 48. Nb7 Nh8 49. b4 Nf7 50. b5 Nd6 51. Nxd6 Kxd6 52. b6 Kc6 53. b7 Kc7 54. c4 1-0

[Event "45th FIDE Womens Olympiad 2024"]
[Site "Budapest"]
[Date "2024.09.12"]
[Round "2.167"]
[White "Benzon, Tiffany"]
[Black "Brown, Raehanna"]
[Result "0-1"]
[ECO "B31"]
[WhiteElo "1610"]
[BlackElo "1910"]
[Annotator "NA"]
[PlyCount "56"]
[EventDate "2024.09.05"]
[EventType "team-tourn"]
[EventCountry "HUN"]
[SourceTitle "playchess.com"]
[Source "ChessBase"]
[SourceQuality "1"]
[WhiteTeam "Guam"]
[BlackTeam "Jamaica"]
[WhiteTeamCountry "GMA"]
[BlackTeamCountry "JAM"]
[TimeControl "40/5400+30:1800+30"]

1. e4 c5 2. Nf3 Nc6 3. Bb5 g6 4. Nc3 Bg7 5. O-O e5 6. a3 Nge7 7. d3 O-O 8. Be3 d6 9. Bxc6 bxc6 10. Bg5 h6 11. Bh4 f5 12. Bxe7 Qxe7 13. Nd2 fxe4 14. dxe4 Ba6 15. Re1 Qf6 16. f3 h5 17. b4 Bh6 18. Nf1 Rad8 19. Ne3 Bf4 20. Qb1 Qh4 21. Qb3+ c4 22. Nxc4 Bxh2+ 23. Kf1 d5 24. b5 cxb5 25. Ne3 b4+ 26. Ne2 Bg3 27. Kg1 Qh2+ 28. Kf1 Qh1# 0-1

[Event "45th FIDE Womens Olympiad 2024"]
[Site "Budapest"]
[Date "2024.09.12"]
[Round "2.168"]
[White "Watson, Gabriella"]
[Black "Nacario, Ruth"]
[Result "1-0"]
[ECO "B07"]
[WhiteElo "1826"]
[BlackElo "1607"]
[Annotator "NA RC"]
[PlyCount "35"]
[EventDate "2024.09.05"]
[EventType "team-tourn"]
[EventCountry "HUN"]
[SourceTitle "playchess.com"]
[Source "ChessBase"]
[SourceQuality "1"]
[WhiteTeam "Jamaica"]
[BlackTeam "Guam"]
[WhiteTeamCountry "JAM"]
[BlackTeamCountry "GMA"]
[TimeControl "40/5400+30:1800+30"]

1. d4 Nf6 2. Bf4 d6 3. Nc3 g6 4. e4 Nbd7 5. Qd2 Bg7 6. Bh6 O-O 7. O-O-O a6 8. h4 b5 9. f3 c5 10. dxc5 Nxc5 11. e5 Ne8 12. Bxg7 Kxg7 13. h5 b4 14. hxg6 Rh8 15. Qh6+ Kg8 16. gxh7+ Rxh7 17. Qxh7+ Kf8 18. Qh8# 1-0

[Event "45th FIDE Womens Olympiad 2024"]
[Site "Budapest"]
[Date "2024.09.12"]
[Round "2.169"]
[White "Rouda Essa, Alserkal"]
[Black "Magno, Angelica"]
[Result "1-0"]
[ECO "B76"]
[WhiteElo "2036"]
[BlackElo "1544"]
[Annotator "NA"]
[PlyCount "85"]
[EventDate "2024.09.05"]
[EventType "team-tourn"]
[EventCountry "HUN"]
[SourceTitle "playchess.com"]
[Source "ChessBase"]
[SourceQuality "1"]
[WhiteTeam "United Arab Emirates"]
[BlackTeam "Palau"]
[WhiteTeamCountry "UAE"]
[BlackTeamCountry "PAL"]
[TimeControl "40/5400+30:1800+30"]

1. e4 c5 2. Nf3 Nc6 3. d4 cxd4 4. Nxd4 g6 5. Nc3 Bg7 6. Be3 Nf6 7. Bc4 O-O 8. Bb3 d6 9. f3 a6 10. a4 Bd7 11. O-O Kh8 12. Re1 e5 13. Nxc6 Bxc6 14. a5 Qe7 15. Qd2 Nd7 16. Rad1 Rad8 17. Qxd6 Qh4 18. Bf2 Qg5 19. Qd2 Qe7 20. Nd5 Bxd5 21. Qxd5 b6 22. Qb7 Bf6 23. axb6 Nc5 24. Qxe7 Bxe7 25. Rxd8 Rxd8 26. Bxf7 Na4 27. b3 Nc3 28. Bc4 Bb4 29. Bxa6 Nd1 30. Rf1 Nxf2 31. Kxf2 Bc5+ 32. Ke2 Bxb6 33. Rd1 Ra8 34. Bb7 Ra2 35. Kd3 Ra7 36. Bd5 Kg7 37. Kc4 Rc7+ 38. Kb5 Bd4 39. Bc6 Rc8 40. b4 Rb8+ 41. Kc4 Kf8 42. c3 Be3 43. Rd7 1-0

[Event "45th FIDE Womens Olympiad 2024"]
[Site "Budapest"]
[Date "2024.09.12"]
[Round "2.170"]
[White "Gemota, Joan"]
[Black "Al Maamari, Wafia Darwish"]
[Result "0-1"]
[ECO "B40"]
[WhiteElo "1567"]
[BlackElo "1908"]
[Annotator "NA"]
[PlyCount "64"]
[EventDate "2024.09.05"]
[EventType "team-tourn"]
[EventCountry "HUN"]
[SourceTitle "playchess.com"]
[Source "ChessBase"]
[SourceQuality "1"]
[WhiteTeam "Palau"]
[BlackTeam "United Arab Emirates"]
[WhiteTeamCountry "PAL"]
[BlackTeamCountry "UAE"]
[TimeControl "40/5400+30:1800+30"]

1. e4 c5 2. Bc4 e6 3. Nf3 a6 4. a3 b5 5. Be2 Bb7 6. d3 g6 7. c3 Bg7 8. a4 b4 9. cxb4 cxb4 10. Nbd2 Ne7 11. Rb1 Nbc6 12. Nc4 d5 13. Ne3 O-O 14. O-O Rc8 15. Ng4 dxe4 16. Ne1 exd3 17. Nxd3 Qa5 18. b3 Nd5 19. Qd2 Nc3 20. Bb2 Nd4 21. Rbe1 Ncxe2+ 22. Rxe2 Rc2 23. Qh6 Nxe2+ 24. Kh1 Rxb2 25. Qe3 Qd5 26. f3 Rxb3 27. Qxe2 Qxd3 28. Qxd3 Rxd3 29. Nf2 Rd2 30. h3 b3 31. Kg1 Bd4 32. Kh2 Rxf2 0-1

[Event "45th FIDE Womens Olympiad 2024"]
[Site "Budapest"]
[Date "2024.09.12"]
[Round "2.171"]
[White "Mariam, Essa"]
[Black "Sisior, Dilyolt Kyarii Parra"]
[Result "1-0"]
[ECO "C70"]
[WhiteElo "1779"]
[BlackElo "1488"]
[Annotator "NA"]
[PlyCount "59"]
[EventDate "2024.09.05"]
[EventType "team-tourn"]
[EventCountry "HUN"]
[SourceTitle "playchess.com"]
[Source "ChessBase"]
[SourceQuality "1"]
[WhiteTeam "United Arab Emirates"]
[BlackTeam "Palau"]
[WhiteTeamCountry "UAE"]
[BlackTeamCountry "PAL"]
[TimeControl "40/5400+30:1800+30"]

1. e4 e5 2. Nf3 Nc6 3. Bb5 a6 4. Ba4 b5 5. Bb3 Na5 6. Nxe5 Nxb3 7. axb3 d6 8. Nf3 Bb7 9. O-O Bxe4 10. Re1 Nf6 11. d3 Be7 12. dxe4 O-O 13. Nc3 Qd7 14. Bg5 Rad8 15. e5 Ng4 16. Bxe7 Qxe7 17. exd6 Qd7 18. h3 Nf6 19. Rxa6 c6 20. Ne5 Qf5 21. Nxc6 Rde8 22. Ne7+ Rxe7 23. dxe7 Re8 24. Qd8 h6 25. Rxf6 Qxf6 26. Qxe8+ Kh7 27. Qxb5 Qd6 28. Qf5+ g6 29. Qxf7+ Kh8 30. e8=R+ 1-0

[Event "45th FIDE Womens Olympiad 2024"]
[Site "Budapest"]
[Date "2024.09.12"]
[Round "2.172"]
[White "Parrado, Angelica"]
[Black "Almaamari, Zainab Darwish"]
[Result "0-1"]
[ECO "E11"]
[WhiteElo "1741"]
[BlackElo "1661"]
[Annotator "NA"]
[PlyCount "134"]
[EventDate "2024.09.05"]
[EventType "team-tourn"]
[EventCountry "HUN"]
[SourceTitle "playchess.com"]
[Source "ChessBase"]
[SourceQuality "1"]
[WhiteTeam "Palau"]
[BlackTeam "United Arab Emirates"]
[WhiteTeamCountry "PAL"]
[BlackTeamCountry "UAE"]
[TimeControl "40/5400+30:1800+30"]

1. d4 Nf6 2. c4 e6 3. g3 Bb4+ 4. Nd2 O-O 5. Bg2 Nc6 6. Ngf3 d6 7. O-O Bxd2 8. Bxd2 Bd7 9. Qc2 e5 10. dxe5 dxe5 11. Bc3 Re8 12. Rad1 Qc8 13. b4 Bf5 14. Qb2 Qe6 15. Nh4 Bh3 16. Bd5 Qe7 17. Rfe1 Nd8 18. b5 Nxd5 19. cxd5 b6 20. Nf3 f6 21. e4 Bg4 22. Rd3 Bxf3 23. Rxf3 Nf7 24. h4 Qd7 25. Kg2 a6 26. a4 Nd6 27. Bb4 Nc4 28. Qe2 axb5 29. axb5 Qxb5 30. Rb3 Qa6 31. Rc1 b5 32. Qg4 Qa2 33. Rbc3 Rad8 34. R1c2 Qa7 35. Rf3 Qa4 36. Bc5 Qxc2 37. Rxf6 Nd2 38. Rc6 Qxe4+ 39. Qxe4 Nxe4 40. Be3 Rxd5 41. Rxc7 Nd6 42. Kh3 Nf5 43. Bc5 Red8 44. h5 Nd4 45. Bb4 R8d7 46. Rc8+ Rd8 47. Rc7 Ne6 48. Re7 Ng5+ 49. Kg2 e4 50. g4 Nf7 51. Kg3 Rd4 52. Bc5 Rc4 53. Bb6 Rd3+ 54. Kh4 g5+ 55. hxg6 hxg6 56. Be3 Kg7 57. g5 b4 58. Bf4 Rd5 59. Be3 Rb5 60. Rd7 b3 61. Rd1 b2 62. Rb1 Kh7 63. Kg4 Ne5+ 64. Kg3 Nd3 65. Rh1+ Kg7 66. Rb1 Kf7 67. Rh1 b1=Q 0-1

[Event "45th FIDE Womens Olympiad 2024"]
[Site "Budapest"]
[Date "2024.09.12"]
[Round "2.173"]
[White "Georgina Sackie"]
[Black "Chung Hurtado, Yaleika"]
[Result "1-0"]
[ECO "D31"]
[WhiteElo "1688"]
[BlackElo "1832"]
[Annotator "NA"]
[PlyCount "153"]
[EventDate "2024.09.05"]
[EventType "team-tourn"]
[EventCountry "HUN"]
[SourceTitle "playchess.com"]
[Source "ChessBase"]
[SourceQuality "1"]
[WhiteTeam "Liberia"]
[BlackTeam "Panama"]
[WhiteTeamCountry "LBR"]
[BlackTeamCountry "PAN"]
[TimeControl "40/5400+30:1800+30"]

1. d4 d5 2. c4 e6 3. Nc3 a6 4. cxd5 exd5 5. Nf3 c6 6. Bg5 Be7 7. Bxe7 Nxe7 8. e3 Qb6 9. Qc2 Bf5 10. Bd3 Bxd3 11. Qxd3 f5 12. Rb1 Nd7 13. b4 O-O 14. O-O Qc7 15. a4 Qd6 16. Ne2 Ng6 17. h4 Qf6 18. h5 Ne7 19. g3 h6 20. Kg2 Qf7 21. Nf4 g5 22. hxg6 Nxg6 23. Rh1 Nxf4+ 24. gxf4 Qg6+ 25. Kf1 Kf7 26. Nh4 Qh5 27. Qxf5+ Qxf5 28. Nxf5 Kg6 29. Ng3 Nb6 30. a5 Nc4 31. Kg2 Rae8 32. Rbe1 Nd6 33. Rh4 Nf5 34. Nxf5 Rxf5 35. Rg4+ Kh7 36. Kf3 Re4 37. Reg1 Rf7 38. Kg3 Re6 39. Kh4 Ref6 40. Rg8 Re7 41. R1g4 Rc7 42. Re8 Rff7 43. Rgg8 Rce7 44. Rh8+ Kg6 45. Rhg8+ Kf5 46. f3 Ke6 47. Kg3 Kd7 48. Rxe7+ Rxe7 49. Kf2 Rh7 50. f5 Ke7 51. e4 Kf7 52. Rd8 Ke7 53. Rb8 Kf6 54. Kg3 dxe4 55. fxe4 Rd7 56. Kf4 Rxd4 57. Rxb7 h5 58. Rc7 Rc4 59. Rh7 Rxb4 60. Rh6+ Kg7 61. Rxc6 h4 62. Rxa6 h3 63. Rg6+ Kf7 64. Rh6 Ra4 65. Rxh3 Rxa5 66. Rh7+ Kg8 67. Rb7 Ra4 68. f6 Ra1 69. Kf5 Rf1+ 70. Ke6 Rf2 71. e5 Rf3 72. Rg7+ Kf8 73. Rd7 Kg8 74. Ke7 Rf5 75. e6 Rf3 76. Rd8+ Kh7 77. f7 1-0

[Event "45th FIDE Womens Olympiad 2024"]
[Site "Budapest"]
[Date "2024.09.12"]
[Round "2.174"]
[White "Vasquez Jaen, Lourdes Lorena"]
[Black "Meleh M. Davis"]
[Result "1-0"]
[ECO "B13"]
[WhiteElo "1821"]
[BlackElo "1602"]
[Annotator "NA"]
[PlyCount "93"]
[EventDate "2024.09.05"]
[EventType "team-tourn"]
[EventCountry "HUN"]
[SourceTitle "playchess.com"]
[Source "ChessBase"]
[SourceQuality "1"]
[WhiteTeam "Panama"]
[BlackTeam "Liberia"]
[WhiteTeamCountry "PAN"]
[BlackTeamCountry "LBR"]
[TimeControl "40/5400+30:1800+30"]

1. e4 c6 2. d4 d5 3. exd5 cxd5 4. c4 Nc6 5. Nc3 Nf6 6. c5 e5 7. dxe5 Nxe5 8. Bf4 Ng6 9. Be3 Be7 10. Bb5+ Bd7 11. Bxd7+ Qxd7 12. Nf3 O-O 13. O-O Rfd8 14. Ne2 Ne4 15. Rc1 Qb5 16. Nfd4 Qxb2 17. a4 Bxc5 18. f3 Bxd4 19. Bxd4 Qd2 20. fxe4 Qxd1 21. Rfxd1 dxe4 22. Ng3 Rac8 23. Rxc8 Rxc8 24. Bxa7 Ra8 25. Bb6 Rxa4 26. Rd8+ Nf8 27. Bc5 g6 28. Rxf8+ Kg7 29. Re8 f5 30. Re7+ Kf6 31. Rxh7 Ra1+ 32. Kf2 Ra2+ 33. Ne2 f4 34. Rxb7 Rc2 35. Bd6 g5 36. Be7+ Kf5 37. Rb5+ Ke6 38. Bxg5 f3 39. gxf3 exf3 40. Kxf3 Rc4 41. h4 Rc8 42. h5 Kf7 43. Rb7+ Kg8 44. h6 Rf8+ 45. Kg4 Kh8 46. Nf4 Kg8 47. h7+ 1-0

[Event "45th FIDE Womens Olympiad 2024"]
[Site "Budapest"]
[Date "2024.09.12"]
[Round "2.175"]
[White "Abigail Karyah"]
[Black "Caicedo Rios, Layla Yasmira"]
[Result "1-0"]
[ECO "D36"]
[WhiteElo "1790"]
[BlackElo "1803"]
[Annotator "NA"]
[PlyCount "179"]
[EventDate "2024.09.05"]
[EventType "team-tourn"]
[EventCountry "HUN"]
[SourceTitle "playchess.com"]
[Source "ChessBase"]
[SourceQuality "1"]
[WhiteTeam "Liberia"]
[BlackTeam "Panama"]
[WhiteTeamCountry "LBR"]
[BlackTeamCountry "PAN"]
[TimeControl "40/5400+30:1800+30"]

1. d4 Nf6 2. c4 e6 3. Nf3 d5 4. Nc3 Be7 5. cxd5 exd5 6. Bg5 O-O 7. Qc2 c6 8. e3 Nbd7 9. Bd3 Re8 10. O-O Nf8 11. Rab1 Ne4 12. Bf4 Nxc3 13. bxc3 Ng6 14. Bg3 Bd6 15. Bxd6 Qxd6 16. a4 Bg4 17. Bxg6 fxg6 18. Ne5 Bf5 19. Nd3 Re7 20. Rb3 Rf8 21. Qd2 Qf6 22. Ne5 Qg5 23. a5 Qf6 24. Qb2 Bc8 25. Qa3 a6 26. Qb2 Qh4 27. Qe2 Rf6 28. Rfb1 g5 29. g3 Qh3 30. f3 Re8 31. Qg2 Qe6 32. Rb6 Ref8 33. R6b2 Qe7 34. g4 Qa3 35. Ra2 Qd6 36. Qe2 Qd8 37. Rb6 Qe8 38. Ra1 Rh6 39. Kg2 Rh4 40. c4 h5 41. h3 Rf6 42. cxd5 hxg4 43. fxg4 cxd5 44. Rxf6 gxf6 45. Nf3 Rh7 46. Rc1 Re7 47. Qc2 Bd7 48. Re1 Kg7 49. Qb3 Bc6 50. Qd3 Qd8 51. Qd2 Qd6 52. h4 Re4 53. Nh2 gxh4 54. Qf2 Qg3+ 55. Qxg3 hxg3 56. Kxg3 Kg6 57. Kf3 Kg5 58. Rb1 Re7 59. Rb3 Rh7 60. Kg3 Kg6 61. Nf3 Rh1 62. Ra3 Bb5 63. Kf4 Rh3 64. e4 Bc6 65. e5 Rh8 66. exf6 Kxf6 67. g5+ Kg7 68. Re3 Rf8+ 69. Kg4 Bd7+ 70. Kg3 Bf5 71. Re7+ Rf7 72. Rxf7+ Kxf7 73. Ne5+ Ke6 74. Kh4 Bh7 75. Kg4 Bf5+ 76. Kf4 Be4 77. Ng4 Bg6 78. Ne3 Be4 79. Kg4 Kf7 80. Nf5 Ke6 81. Nh4 Bh1 82. g6 Kf6 83. Kh5 Be4 84. Kh6 Bxg6 85. Nxg6 Kf5 86. Nf8 Ke4 87. Ne6 Kf5 88. Nc5 Kf4 89. Kg6 Ke3 90. Ne6 1-0

[Event "45th FIDE Womens Olympiad 2024"]
[Site "Budapest"]
[Date "2024.09.12"]
[Round "2.176"]
[White "Carrillo Marval, Maria Angelica"]
[Black "Princess K. Banney"]
[Result "1-0"]
[ECO "B15"]
[WhiteElo "1795"]
[BlackElo "1447"]
[Annotator "NA"]
[PlyCount "77"]
[EventDate "2024.09.05"]
[EventType "team-tourn"]
[EventCountry "HUN"]
[SourceTitle "playchess.com"]
[Source "ChessBase"]
[SourceQuality "1"]
[WhiteTeam "Panama"]
[BlackTeam "Liberia"]
[WhiteTeamCountry "PAN"]
[BlackTeamCountry "LBR"]
[TimeControl "40/5400+30:1800+30"]

1. e4 c6 2. d4 d5 3. Nc3 dxe4 4. Nxe4 Nf6 5. Nxf6+ exf6 6. Nf3 Bg4 7. Be2 Bd6 8. Be3 Nd7 9. Qd2 Qc7 10. h3 Bxf3 11. Bxf3 O-O 12. g4 Rfe8 13. O-O-O a5 14. Be2 b5 15. d5 Ra6 16. dxc6 Qxc6 17. Qd5 Rb8 18. Qxc6 Rxc6 19. Bf3 Ra6 20. Rd5 Ne5 21. Be2 Nc4 22. Bxc4 bxc4 23. Rxd6 Rxd6 24. Bf4 Rbb6 25. Bxd6 Rxd6 26. Rd1 Rxd1+ 27. Kxd1 Kf8 28. Kd2 Ke7 29. Kc3 Ke6 30. Kxc4 f5 31. gxf5+ Kxf5 32. Kd5 g5 33. c4 g4 34. hxg4+ Kxg4 35. c5 h5 36. c6 h4 37. c7 f5 38. c8=Q h3 39. Qg8+ 1-0

[Event "45th FIDE Womens Olympiad 2024"]
[Site "Budapest"]
[Date "2024.09.12"]
[Round "2.178"]
[White "Zenobia Wasif"]
[Black "Badenhorst, Chloe"]
[Result "0-1"]
[ECO "B12"]
[WhiteElo "1743"]
[BlackElo "1981"]
[Annotator "NA"]
[PlyCount "76"]
[EventDate "2024.09.05"]
[EventType "team-tourn"]
[EventCountry "HUN"]
[SourceTitle "playchess.com"]
[Source "ChessBase"]
[SourceQuality "1"]
[WhiteTeam "Pakistan"]
[BlackTeam "South Africa"]
[WhiteTeamCountry "PAK"]
[BlackTeamCountry "RSA"]
[TimeControl "40/5400+30:1800+30"]

1. e4 c6 2. d4 d5 3. e5 c5 4. c3 Nc6 5. Nf3 cxd4 6. cxd4 Bg4 7. Be2 e6 8. Nc3 Nge7 9. O-O Nf5 10. Be3 Be7 11. h3 Bh5 12. g4 Nxe3 13. fxe3 Bg6 14. a3 h5 15. Bd3 Bg5 16. Bxg6 fxg6 17. Qd3 Rh6 18. Nb5 hxg4 19. Nd6+ Qxd6 20. exd6 gxf3 21. Rxf3 Bf6 22. b4 Kd7 23. b5 Na5 24. Qc3 Nc4 25. e4 Rc8 26. Qc1 Bxd4+ 27. Kh1 Ne5 28. Qg5 Kxd6 29. Rg3 Bxa1 30. exd5 exd5 31. Qf4 Ke6 32. Re3 Rhh8 33. Re1 Rxh3+ 34. Kg2 Rch8 35. Qc1 Rh2+ 36. Kg3 R8h3+ 37. Kf4 Rf2+ 38. Kg5 Rh5# 0-1

[Event "45th FIDE Womens Olympiad 2024"]
[Site "Budapest"]
[Date "2024.09.12"]
[Round "2.179"]
[White "Klaasen, Robyn Julian"]
[Black "Mehak Gul"]
[Result "1/2-1/2"]
[ECO "A75"]
[WhiteElo "1764"]
[BlackElo "1709"]
[Annotator "NA"]
[PlyCount "88"]
[EventDate "2024.09.05"]
[EventType "team-tourn"]
[EventCountry "HUN"]
[SourceTitle "playchess.com"]
[Source "ChessBase"]
[SourceQuality "1"]
[WhiteTeam "South Africa"]
[BlackTeam "Pakistan"]
[WhiteTeamCountry "RSA"]
[BlackTeamCountry "PAK"]
[TimeControl "40/5400+30:1800+30"]

1. d4 Nf6 2. c4 e6 3. Nf3 c5 4. d5 exd5 5. cxd5 d6 6. Nc3 g6 7. e4 Bg7 8. Be2 O-O 9. O-O Bg4 10. Bf4 Bxf3 11. Bxf3 a6 12. a4 Re8 13. Re1 Qb6 14. Qc2 Nfd7 15. a5 Qc7 16. Na4 Ne5 17. Bxe5 Bxe5 18. Nb6 Ra7 19. Bg4 Rd8 20. Rab1 Nd7 21. Bxd7 Rxd7 22. Nxd7 Qxd7 23. b4 Bd4 24. bxc5 Bxc5 25. e5 Ra8 26. exd6 Bxd6 27. Qb3 Rb8 28. Re2 Rc8 29. g3 Rc7 30. Qf3 Rc5 31. Reb2 Rb5 32. Rxb5 axb5 33. Qd3 b4 34. a6 bxa6 35. Qxa6 Qf5 36. Qa2 Qd3 37. Qa8+ Kg7 38. Qa1+ Kg8 39. Rd1 Qc3 40. Qa8+ Kg7 41. Qc6 Qe5 42. Qc4 Qc3 43. Qc6 Qe5 44. Qb6 h5 1/2-1/2

[Event "45th FIDE Womens Olympiad 2024"]
[Site "Budapest"]
[Date "2024.09.12"]
[Round "2.180"]
[White "Aayat Asmi"]
[Black "Strong, Davida"]
[Result "0-1"]
[ECO "C05"]
[WhiteElo "1421"]
[BlackElo "1733"]
[Annotator "NA"]
[PlyCount "88"]
[EventDate "2024.09.05"]
[EventType "team-tourn"]
[EventCountry "HUN"]
[SourceTitle "playchess.com"]
[Source "ChessBase"]
[SourceQuality "1"]
[WhiteTeam "Pakistan"]
[BlackTeam "South Africa"]
[WhiteTeamCountry "PAK"]
[BlackTeamCountry "RSA"]
[TimeControl "40/5400+30:1800+30"]

1. e4 e6 2. d4 d5 3. Nd2 Nf6 4. e5 Nfd7 5. c3 c5 6. f4 Nc6 7. Ndf3 Qb6 8. a3 cxd4 9. cxd4 a6 10. Ne2 Qa7 11. Nc3 b5 12. b4 Nb6 13. Be2 Qc7 14. O-O Nxb4 15. axb4 Qxc3 16. Bd2 Qc6 17. Rc1 Nc4 18. Qe1 Qd7 19. Bxc4 dxc4 20. Bc3 Bb7 21. Nd2 Bd5 22. Ne4 Qc6 23. Nc5 Bxc5 24. dxc5 Bxg2 25. Rf2 Be4 26. Re2 Bf5 27. Qg3 O-O-O 28. Ra2 Kb7 29. Rca1 Ra8 30. Qg5 Rhe8 31. Kf2 g6 32. Qh6 Qc7 33. Rd2 Bd3 34. Rda2 Red8 35. Qh3 Qd7 36. Qg2+ Qd5 37. Qg5 Rd7 38. Qh6 Qe4 39. Kg3 Qe3+ 40. Kh4 Bf5 41. Kg5 Qxc3 42. Qxh7 f6+ 43. exf6 Rxh7 44. Ra3 Rh5# 0-1